bitfinex/quotes_ETHUSD_20250801
["timestamp","ask_amount","ask_price","bid_price","bid_amount"]
[1754045219849,1.34544614,3626.9,3626.6,2.75736608]
[1754045220057,1.34544614,3626.9,3626.7,1.1795]
[1754045220256,1.34544614,3626.9,3626.7,3.93676289]
[1754045220568,1.34544614,3626.9,3613.6,0.071]
[1754045220569,1.34544614,3626.9,3626.8,0.7458]
[1754045220774,1.36544614,3626.9,3626.3,3.0]
[1754045221070,1.36544614,3626.9,3626.2,0.7458]
[1754045221071,0.1376,3626.7,3626.2,3.0]
[1754045221222,0.7484,3626.8,3626.2,3.0]
[1754045221425,0.1376,3626.5,3625.9,2.89553448]
[1754045221620,2.77756481,3626.4,3625.6,2.75810563]
[1754045221862,0.1376,3626.2,3625.7,0.1376]
[1754045222082,0.7484,3626.1,3625.7,0.1376]
[1754045222382,5.4579,3626.0,3625.0,5.4245]
[1754045222555,0.1576,3625.9,3625.5,3.0]
[1754045223039,0.1576,3625.9,3625.7,2.75808809]
[1754045223231,0.1576,3625.9,3625.6,3.93764037]
[1754045223459,0.1576,3625.9,3625.7,1.1795]
[1754045223635,0.02,3625.9,3625.7,3.93752751]
[1754045223963,0.02,3625.9,3625.8,0.7458]
[1754045224259,0.02,3625.9,3625.4,0.1376]
[1754045224556,0.1376,3625.6,3625.2,3.0]
[1754045224864,0.1376,3625.6,3625.2,3.7458]
[1754045225262,0.1376,3625.6,3625.2,3.50425057]
[1754045225438,0.1376,3625.6,3625.2,3.7458]
[1754045225761,0.1376,3625.6,3625.5,3.0]
[1754045226383,0.1376,3625.6,3625.3,0.7458]
[1754045226877,0.1376,3625.6,3625.1,0.1376]
[1754045226878,0.1576,3625.6,3625.1,0.1376]
[1754045227045,2.75871364,3624.9,3624.5,0.7458]
[1754045227242,2.75870986,3624.9,3624.5,0.8834]
[1754045227456,2.75877289,3624.8,3624.1,0.7458]
[1754045227678,2.89656612,3624.6,3624.1,0.8834]
[1754045227846,2.75900158,3624.5,3624.1,0.8834]
[1754045228180,2.75900158,3624.5,3624.2,0.7458]
[1754045228379,2.75900557,3624.5,3624.2,0.7458]
[1754045228576,0.02,3624.5,3624.2,0.7458]
[1754045229548,2.77900908,3624.5,3624.2,0.7458]
[1754045229748,2.75909178,3624.4,3624.1,0.1376]
[1754045230053,2.75909178,3624.4,3624.1,0.7458]
[1754045230380,0.1376,3624.4,3623.9,0.8834]
[1754045230585,0.1376,3624.4,3624.0,0.7458]
[1754045230973,0.1376,3624.4,3624.0,0.4337]
[1754045231175,0.1376,3624.4,3624.1,0.7458]
[1754045231576,2.75916351,3624.3,3624.1,0.7458]
[1754045231887,0.1376,3624.4,3624.1,0.7458]
[1754045231888,2.89670299,3624.4,3624.1,0.7458]
[1754045232181,2.75923477,3624.2,3623.9,0.1376]
[1754045232398,2.75920321,3624.3,3623.8,0.7458]
[1754045233184,0.886,3624.4,3623.8,0.7458]
[1754045233379,0.1376,3624.4,3623.8,0.7458]
[1754045233586,2.89667921,3624.4,3623.8,0.7458]
[1754045233789,2.75915349,3624.3,3623.8,0.7458]
[1754045233991,2.75915349,3624.3,3623.7,0.5713]
[1754045234194,0.1376,3624.0,3623.5,0.8834]
[1754045234662,2.8971446,3623.8,3623.3,0.4337]
[1754045235000,2.89714513,3623.8,3623.3,1.3171]
[1754045235395,0.1376,3623.8,3623.3,0.5713]
[1754045235594,0.1376,3623.8,3623.4,0.7458]
[1754045236310,4.246,3623.7,3623.0,3.0]
[1754045236510,2.89748963,3623.4,3622.8,0.1384]
[1754045236716,4.246,3623.3,3622.8,0.1384]
[1754045237204,4.246,3623.3,3622.8,0.8709]
[1754045237430,4.246,3623.3,3622.8,3.8709]
[1754045237701,4.246,3623.3,3622.8,3.1384]
[1754045237911,4.246,3623.3,3622.8,0.8709]
[1754045238111,4.246,3623.3,3622.8,3.63119183]
[1754045238285,4.246,3623.3,3622.8,0.8709]
[1754045238484,4.246,3623.3,3622.9,0.7325]
[1754045238724,4.246,3623.3,3623.0,3.0]
[1754045238926,4.246,3623.3,3623.0,0.7325]
[1754045239219,4.246,3623.3,3622.8,0.5853]
[1754045239390,4.246,3623.3,3622.9,3.7325]
[1754045239585,4.246,3623.3,3622.9,0.7325]
[1754045239811,4.246,3623.3,3622.9,3.7325]
[1754045240014,4.246,3623.3,3622.9,0.7325]
[1754045240202,4.246,3623.3,3622.8,0.1384]
[1754045240393,4.9683,3623.3,3622.8,0.1384]
[1754045240916,4.9683,3623.3,3622.8,0.8709]
[1754045241209,0.1384,3623.1,3622.6,0.1384]
[1754045241719,2.89851147,3623.1,3622.6,0.1384]
[1754045241913,0.8607,3623.1,3622.6,0.1384]
[1754045242217,0.8607,3623.1,3622.6,0.8709]
[1754045242913,3.62079167,3623.1,3622.6,0.8709]
[1754045243116,3.62079167,3623.1,3622.2,3.7325]
[1754045243117,1.1713,3623.0,3622.2,3.7325]
[1754045243316,0.1384,3622.8,3622.3,2.76061597]
[1754045243517,0.1384,3622.8,3622.3,0.7325]
[1754045243919,0.1384,3622.8,3622.5,2.76052449]
[1754045244105,0.1384,3622.8,3622.4,3.93998159]
[1754045244413,0.1384,3622.8,3622.4,3.20744745]
[1754045244599,0.1384,3622.8,3622.6,2.76042805]
[1754045244914,0.1384,3622.8,3622.6,2.76042441]
[1754045245118,0.1384,3622.8,3622.6,3.49292441]
[1754045245288,0.1384,3622.8,3622.6,0.7325]
[1754045245615,0.1384,3622.8,3622.6,3.49289882]
[1754045245812,0.1384,3622.8,3622.6,0.7325]
[1754045246017,0.1384,3622.8,3622.6,3.49292362]
[1754045246420,0.1384,3622.8,3622.6,0.7325]
[1754045246610,0.1384,3622.8,3622.5,2.76050656]
[1754045246808,0.1384,3622.8,3622.2,0.1384]
[1754045247006,4.247,3622.9,3622.3,2.76062762]
[1754045247007,0.1384,3622.6,3622.3,2.76062762]
[1754045247207,0.1384,3622.6,3622.4,3.0]
[1754045247524,0.1384,3622.6,3622.5,2.76052449]
[1754045247937,0.1384,3622.6,3622.5,0.7325]
[1754045248643,2.89887314,3622.6,3622.1,0.01]
[1754045248823,4.53688731,3622.5,3622.1,0.01]
[1754045249140,0.1384,3622.2,3622.1,0.01]
[1754045250896,0.8607,3622.2,3622.1,0.01]
[1754045251315,0.1384,3622.2,3622.1,0.01]
[1754045251509,0.8607,3622.2,3622.1,0.01]
[1754045251801,1.23686946,3622.2,3622.1,0.01]
[1754045252235,0.1384,3622.2,3622.1,0.01]
[1754045252707,2.89915313,3622.2,3622.1,0.01]
[1754045252909,4.07045313,3622.2,3622.1,0.01]
[1754045253122,4.62045313,3622.2,3622.1,0.01]
[1754045254701,8.86745313,3622.2,3622.1,0.01]
[1754045254933,8.83153276,3622.2,3622.1,0.01]
[1754045255122,0.1384,3622.2,3622.1,0.01]
[1754045255333,7.14715313,3622.2,3622.1,0.01]
[1754045255535,8.86845313,3622.2,3622.1,0.01]
[1754045256913,4.62045313,3622.2,3622.1,0.01]
[1754045257107,8.86845313,3622.2,3622.1,0.01]
[1754045257335,11.59328589,3622.2,3622.1,0.01]
[1754045257725,2.86323276,3622.2,3622.1,0.01]
[1754045257902,4.248,3622.2,3622.1,0.01]
[1754045258105,8.86845313,3622.2,3622.1,0.01]
[1754045259039,4.9364,3622.2,3622.1,0.01]
[1754045259335,0.28988731,3622.5,3622.1,0.7425]
[1754045259540,0.1384,3622.2,3622.1,0.4569]
[1754045259700,4.3864,3622.2,3622.1,0.4569]
[1754045260104,4.3864,3622.2,3622.1,0.7425]
[1754045260506,0.1384,3622.2,3622.1,1.1894]
[1754045260762,0.1384,3622.2,3622.1,3.95022935]
[1754045261056,7.68245885,3623.0,3622.1,2.02652279]
[1754045261210,4.248,3622.9,3622.2,1.1794]
[1754045261409,0.1384,3622.8,3622.6,2.7603848]
[1754045261625,0.1384,3622.8,3622.7,1.1794]
[1754045261837,0.1384,3622.8,3622.3,0.5853]
[1754045262052,4.82794439,3622.8,3622.1,0.7425]
[1754045262354,2.51658588,3622.8,3622.1,0.7425]
[1754045262522,1.34528588,3622.8,3622.1,3.50332686]
[1754045262720,0.1384,3622.2,3622.1,3.50332686]
[1754045263026,0.1384,3622.2,3622.1,4.08862686]
[1754045263027,4.248,3622.2,3622.1,4.08862686]
[1754045263230,4.248,3622.2,3622.1,1.1894]
[1754045264325,7.68245885,3623.0,3622.3,2.76067574]
[1754045264515,0.1384,3622.5,3622.4,0.7325]
[1754045264842,4.4064,3622.5,3622.4,0.7325]
[1754045265025,0.1584,3622.5,3622.4,3.9400007]
[1754045265349,0.1584,3622.5,3619.5,0.7325]
[1754045265350,0.55,3621.9,3619.5,0.7325]
[1754045265535,2.76175864,3620.9,3619.5,0.7325]
[1754045265743,0.1384,3620.1,3619.6,0.4469]
[1754045266042,3.0,3621.1,3619.7,0.7325]
[1754045266225,0.1384,3620.2,3619.8,0.4469]
[1754045266429,4.281,3620.1,3619.3,0.4469]
[1754045266645,4.281,3620.1,3618.8,0.4324]
[1754045266646,0.1384,3619.4,3618.8,0.4324]
[1754045266946,4.285,3619.3,3618.8,0.4324]
[1754045267151,0.1384,3618.9,3618.7,0.7184]
[1754045267313,20.48301753,3619.7,3617.1,0.4324]
[1754045267314,12.177,3618.8,3617.1,0.4324]
[1754045267513,0.4281,3620.0,3617.2,0.46004569]
[1754045267738,0.01,3618.9,3617.3,0.02764492]
[1754045267925,0.01,3618.9,3616.7,2.727]
[1754045267926,0.01,3618.9,3617.4,0.4324]
[1754045268130,0.01,3619.9,3618.7,3.0]
[1754045268352,0.01,3619.9,3618.8,0.4324]
[1754045268867,0.55,3619.7,3618.3,0.4324]
[1754045269031,1.80110466,3619.6,3618.3,0.4324]
[1754045269355,0.55,3619.5,3618.1,0.4324]
[1754045269562,1.80110466,3619.6,3618.1,0.4324]
[1754045269718,2.76288887,3619.4,3618.1,0.4324]
[1754045270064,4.362,3619.3,3618.2,2.76375658]
[1754045270219,1.80110466,3619.6,3618.3,1.17843728]
[1754045270549,4.363,3619.2,3618.8,2.76328069]
[1754045270750,4.363,3619.2,3619.1,2.7631179]
[1754045270914,0.01,3619.9,3619.3,2.76293239]
[1754045271326,4.363,3619.8,3619.1,0.7184]
[1754045271564,4.364,3619.8,3619.2,0.4324]
[1754045271864,4.364,3619.8,3619.2,1.12380016]
[1754045272160,4.364,3619.8,3619.7,2.76265988]
[1754045272360,0.01,3619.9,3619.8,2.76258356]
[1754045272559,0.01,3619.9,3619.8,3.91338356]
[1754045273566,0.01,3619.9,3619.8,7.58099257]
[1754045274571,0.01,3619.9,3619.8,6.91338356]
[1754045274773,0.01,3619.9,3619.8,4.1508]
[1754045274928,0.01,3619.9,3619.8,3.0]
[1754045275263,0.01,3619.9,3619.6,2.76273506]
[1754045275433,0.01,3619.9,3619.7,3.0]
[1754045275873,0.01,3619.9,3619.8,3.91338356]
[1754045276671,0.01,3619.9,3619.8,3.19498356]
[1754045277172,0.01,3619.9,3619.8,0.4324]
[1754045277368,0.01,3619.9,3619.8,3.19498356]
[1754045277537,0.01,3619.9,3619.8,3.91338356]
[1754045278343,0.01,3619.9,3619.8,0.4324]
[1754045278534,0.01,3619.9,3619.7,0.1384]
[1754045278863,0.1484,3619.9,3619.7,2.76265866]
[1754045279586,0.1484,3619.9,3619.8,2.76258356]
[1754045279863,0.01,3619.9,3619.8,3.33338356]
[1754045280032,0.01,3619.9,3619.8,4.05178356]
[1754045280230,0.01,3619.9,3619.8,7.76086022]
[1754045280464,0.01,3619.9,3619.8,7.73323439]
[1754045283276,1e-08,3619.9,3619.8,7.73323439]
[1754045283489,1e-08,3619.9,3619.8,8.28323439]
[1754045287150,1e-08,3619.9,3619.8,12.08723439]
[1754045288343,1e-08,3619.9,3619.8,11.36983439]
[1754045288566,1e-08,3619.9,3619.8,12.08823439]
[1754045289044,1e-08,3619.9,3619.8,12.63823439]
[1754045291982,1e-08,3620.9,3620.8,6.31182059]
[1754045292181,0.01,3621.9,3621.8,2.76105803]
[1754045292495,0.01,3621.9,3621.8,5.76105803]
[1754045292656,0.01,3621.9,3621.8,5.89945803]
[1754045293366,0.01,3621.9,3621.8,5.76105803]
[1754045293690,0.01,3621.9,3621.8,3.0]
[1754045294286,0.01,3621.9,3620.9,0.4324]
[1754045294287,0.01,3621.9,3621.4,3.0]
[1754045294493,0.01,3621.9,3621.7,2.76105967]
[1754045294662,0.01,3621.9,3621.5,0.1384]
[1754045294980,0.01,3621.9,3621.5,2.89965722]
[1754045295194,0.01,3621.9,3621.5,0.1384]
[1754045295346,0.01,3621.9,3621.8,2.76105803]
[1754045296300,0.01,3621.9,3621.7,2.76111386]
[1754045296652,0.01,3621.9,3621.6,2.76118434]
[1754045296983,0.01,3621.9,3621.8,2.76105803]
[1754045297182,0.01,3621.9,3621.5,2.89967408]
[1754045297384,0.01,3621.9,3621.7,3.0]
[1754045297607,4.2,3621.8,3621.7,2.76111258]
[1754045297782,4.2,3621.8,3621.7,3.0]
[1754045299073,4.2,3621.8,3621.7,5.76113427]
[1754045300749,4.2,3621.8,3621.7,3.0]
[1754045300949,4.2,3621.8,3621.7,2.76113427]
[1754045304970,4.2,3621.8,3621.7,6.19453427]
[1754045305171,4.2,3621.8,3621.7,7.88441207]
[1754045306300,4.21,3621.9,3621.8,5.76105803]
[1754045306504,4.21,3621.9,3621.8,7.02025803]
[1754045307692,0.01,3621.9,3621.6,2.76117255]
[1754045307896,0.5826,3621.9,3621.5,2.76123959]
[1754045308199,0.5826,3621.9,3621.6,2.76119984]
[1754045308405,0.5826,3621.9,3621.5,2.76126205]
[1754045308704,0.5826,3621.9,3621.3,2.89983652]
[1754045308915,0.49146,3621.8,3621.3,0.1384]
[1754045309079,0.1384,3621.6,3621.4,2.76131164]
[1754045309281,4.346,3621.5,3621.2,2.76150369]
[1754045309479,4.346,3621.5,3621.3,2.76143785]
[1754045309680,4.346,3621.5,3621.1,3.1384]
[1754045310108,4.346,3621.5,3620.7,0.4334]
[1754045310305,9.837646,3621.5,3620.9,2.76168893]
[1754045311205,9.837646,3621.5,3620.6,3.0]
[1754045311405,9.837646,3621.5,3620.9,2.76170619]
[1754045311608,9.837646,3621.5,3620.8,2.7618017]
[1754045312295,9.837646,3621.5,3620.3,2.76219682]
[1754045312486,1.26089046,3621.4,3620.1,4.344]
[1754045312689,11.26,3621.3,3620.4,2.76207459]
[1754045312996,2.76156481,3621.2,3620.3,2.76219985]
[1754045313186,2.77156481,3621.2,3620.3,2.76219985]
[1754045313389,3.57946481,3621.2,3620.4,3.0]
[1754045313592,1.88617197,3621.1,3620.4,3.0]
[1754045313775,15.602,3621.0,3620.2,2.76226872]
[1754045314112,18.36367506,3621.0,3620.3,3.0]
[1754045314294,15.602,3621.0,3620.3,2.762143]
[1754045314879,0.8079,3620.9,3620.3,2.762143]
[1754045315306,0.8079,3620.9,3620.4,2.76211474]
[1754045315605,0.8079,3620.8,3620.5,2.7619822]
[1754045315973,0.8079,3620.8,3620.4,2.7620961]
[1754045316375,0.8079,3620.8,3620.5,2.76204504]
[1754045316574,0.8079,3620.8,3620.6,2.76193337]
[1754045316910,4.34,3620.7,3620.3,1.2592]
[1754045317076,4.34,3620.7,3620.4,2.76212573]
[1754045317477,4.338,3620.6,3620.4,2.76212573]
[1754045317774,4.2,3620.5,3620.4,2.76212573]
[1754045319207,4.2,3620.5,3620.3,2.76219529]
[1754045319712,4.2,3620.5,3620.1,2.76231662]
[1754045319886,4.2,3620.1,3619.4,1.2592]
[1754045320085,4.2,3620.1,3618.5,2.76354015]
[1754045320086,11.394,3620.0,3619.7,0.1384]
[1754045320300,11.394,3620.0,3619.9,2.76250725]
[1754045320504,11.394,3620.0,3619.8,2.76255169]
[1754045320701,11.394,3620.0,3619.9,2.76250725]
[1754045321107,11.394,3620.0,3619.8,2.76255271]
[1754045321306,11.394,3620.0,3619.7,0.5718]
[1754045321616,11.394,3620.0,3619.9,2.76250725]
[1754045322212,11.392,3620.0,3619.9,2.76250725]
[1754045322413,11.392,3620.0,3619.8,2.76255216]
[1754045322715,4.2,3619.9,3619.7,0.1384]
[1754045322916,6.58094,3619.9,3619.7,0.1384]
[1754045323121,0.1384,3619.8,3619.4,2.76283359]
[1754045323302,5.77304,3619.9,3619.2,2.76304155]
[1754045323303,4.332,3619.7,3619.5,2.76275982]
[1754045323481,0.1384,3619.7,3619.5,0.4334]
[1754045323686,4.332,3619.6,3619.5,3.19614811]
[1754045323883,4.332,3619.6,3619.5,2.76274811]
[1754045324118,4.332,3619.6,3618.9,3.0]
[1754045324119,4.332,3619.6,3618.9,1.2592]
[1754045324417,4.332,3619.6,3619.3,2.76296284]
[1754045324609,4.332,3619.6,3619.4,2.76283439]
[1754045325010,4.332,3619.6,3619.5,2.76281254]
[1754045325211,4.332,3619.6,3619.4,2.76287153]
[1754045325726,4.332,3619.6,3619.3,3.4334]
[1754045325727,4.332,3619.6,3619.3,3.19635404]
[1754045326324,4.332,3619.6,3619.3,3.19635458]
[1754045326816,6.04364,3619.6,3619.3,2.76295411]
[1754045327118,4.2,3619.5,3619.3,2.76292126]
[1754045327321,4.2,3619.5,3619.0,0.1384]
[1754045327526,5.0446,3619.5,3619.1,2.76310698]
[1754045327817,0.1384,3619.4,3618.9,0.1384]
[1754045328024,8.528,3619.3,3619.0,2.76316425]
[1754045328219,8.528,3619.3,3618.9,3.0]
[1754045328403,8.528,3619.3,3618.9,2.7632076]
[1754045328724,8.528,3619.3,3619.0,2.76317598]
[1754045328923,8.528,3619.3,3619.1,2.76311495]
[1754045329218,8.528,3619.3,3618.8,0.6017]
[1754045329412,8.528,3619.3,3619.0,3.0]
[1754045329613,8.528,3619.3,3619.1,2.76307237]
[1754045329809,8.528,3619.3,3619.2,2.76304155]
[1754045330010,4.2,3619.3,3619.2,2.76304155]
[1754045330212,8.525,3619.3,3619.1,2.76310207]
[1754045330412,8.525,3619.3,3618.8,1.2884]
[1754045330587,9.60036,3619.3,3618.8,0.1384]
[1754045330786,9.60036,3619.3,3618.4,0.8251]
[1754045330787,0.1384,3619.1,3618.5,0.1384]
[1754045330992,0.1384,3618.5,3615.7,2.76564601]
[1754045331192,7.9372899,3618.4,3617.4,0.1384]
[1754045331412,0.1384,3617.7,3617.2,2.90295713]
[1754045331614,5.1776,3617.6,3617.2,3.0]
[1754045331824,5.1776,3617.6,3617.0,0.4633]
[1754045331825,0.1384,3617.5,3617.0,0.6017]
[1754045332031,0.8446,3617.5,3616.8,0.1384]
[1754045332205,0.1384,3617.3,3616.9,3.0]
[1754045332537,4.334,3617.2,3616.9,0.4633]
[1754045332708,4.334,3617.2,3615.9,0.4633]
[1754045332911,4.333,3617.1,3616.7,0.1384]
[1754045333117,4.333,3617.0,3616.8,2.76487502]
[1754045333320,0.8446,3617.3,3615.5,2.76579511]
[1754045333525,0.8446,3617.3,3616.8,2.76482115]
[1754045333729,4.339,3617.2,3615.3,2.76796065]
[1754045333938,17.73976536,3616.2,3614.2,0.17219832]
[1754045334097,7.28736,3617.1,3614.7,0.4633]
[1754045334098,4.364,3616.1,3614.7,0.4633]
[1754045334297,8.01196,3617.1,3614.6,1.655931]
[1754045334298,0.8446,3616.8,3616.7,2.76493099]
[1754045334498,4.366,3616.8,3615.8,0.4633]
[1754045334697,4.367,3616.7,3615.9,0.02765563]
[1754045335034,5.2116,3616.6,3616.2,2.76532716]
[1754045335209,4.367,3616.5,3615.6,2.76572519]
[1754045335408,0.8446,3616.4,3615.4,2.76594567]
[1754045335730,0.8446,3616.4,3615.4,2.76593408]
[1754045336227,0.55,3616.3,3615.5,2.76586557]
[1754045336430,0.57616,3616.2,3615.5,2.76586531]
[1754045336634,5.2156,3616.1,3615.5,2.76586531]
[1754045336801,5.2156,3616.1,3615.3,5.765946]
[1754045337003,5.2156,3616.1,3615.3,3.0]
[1754045337414,5.2156,3616.1,3615.5,2.76586106]
[1754045337615,0.634176,3616.0,3615.3,3.0]
[1754045337810,0.634176,3616.0,3615.2,2.76609542]
[1754045337811,0.634176,3616.0,3615.2,3.0]
[1754045338037,0.634176,3616.0,3615.5,2.76581022]
[1754045338249,0.634176,3616.0,3615.4,2.76592016]
[1754045338401,0.8446,3615.9,3615.5,2.7658526]
[1754045338746,2.76572553,3615.7,3614.9,0.002]
[1754045338959,4.371,3615.6,3614.9,0.002]
[1754045339121,0.8446,3615.6,3614.9,2.76830788]
[1754045339320,0.8446,3615.6,3614.9,0.002]
[1754045339321,4.371,3615.5,3614.9,0.002]
[1754045339520,0.52156,3615.4,3614.9,0.002]
[1754045339829,4.374,3615.3,3614.9,0.002]
[1754045340030,5.2186,3615.3,3614.9,0.002]
[1754045340234,4.3946,3615.2,3614.9,0.002]
[1754045340549,10.0,3616.5,3616.4,2.76518084]
[1754045340710,0.8446,3617.8,3616.5,2.76510438]
[1754045340711,0.172198,3616.6,3616.5,2.76510438]
[1754045340911,4.386,3616.9,3616.0,2.76547885]
[1754045341112,0.8446,3617.1,3616.1,0.35905789]
[1754045341362,6.642,3618.1,3616.4,2.76518084]
[1754045341644,6.642,3618.1,3616.9,3.0]
[1754045341645,4.391,3618.0,3616.9,3.0]
[1754045341810,4.391,3618.0,3617.1,3.0]
[1754045342014,6.642,3618.1,3618.0,2.76395798]
[1754045342215,11.035,3618.1,3618.0,3.22725798]
[1754045342410,4.393,3618.1,3618.0,7.05235798]
[1754045342850,0.8446,3619.2,3618.1,5.76388159]
[1754045343065,0.8446,3619.2,3618.0,5.27004535]
[1754045343066,4.392,3619.1,3618.0,1.2884]
[1754045343265,0.8546,3619.0,3617.6,3.2275529]
[1754045343473,13.09092052,3618.2,3617.4,0.1384]
[1754045343750,0.1384,3616.9,3616.3,0.1384]
[1754045343925,4.395,3616.8,3616.3,0.1384]
[1754045344116,0.1384,3616.5,3616.0,0.1384]
[1754045344335,0.1384,3616.5,3616.1,1.2884]
[1754045344520,4.396,3616.4,3616.2,1.2884]
[1754045344850,4.397,3616.3,3616.2,3.59043377]
[1754045345050,4.397,3616.3,3616.2,0.8251]
[1754045345353,4.397,3616.6,3616.5,2.76510438]
[1754045345555,4.397,3616.6,3616.4,2.76515576]
[1754045345849,0.1384,3616.8,3616.7,2.76495147]
[1754045346054,4.402,3616.8,3616.7,2.76495147]
[1754045346240,4.402,3616.8,3616.6,2.90340913]
[1754045346415,4.402,3616.8,3616.7,2.76495147]
[1754045346612,4.402,3616.8,3616.6,2.90341272]
[1754045347118,0.1384,3617.1,3616.6,0.6017]
[1754045347119,4.403,3616.7,3616.6,0.6017]
[1754045347322,4.403,3616.7,3616.6,2.90342792]
[1754045347819,0.1384,3617.1,3616.8,2.7648661]
[1754045348015,4.399,3617.0,3616.8,2.7648661]
[1754045348244,4.399,3617.0,3616.8,2.76485348]
[1754045348420,4.399,3617.0,3616.8,3.22815348]
[1754045348620,4.399,3617.0,3616.8,0.4633]
[1754045348816,4.399,3617.0,3616.6,0.1384]
[1754045349059,4.399,3617.0,3616.6,0.6017]
[1754045349219,4.399,3617.0,3616.7,0.4633]
[1754045349425,4.399,3617.0,3616.6,0.1384]
[1754045349649,0.8446,3616.9,3615.5,1.2884]
[1754045349867,0.8446,3616.9,3616.0,2.765444]
[1754045350221,3.60945898,3616.9,3615.9,2.76552912]
[1754045350425,3.60945898,3616.9,3615.8,3.0]
[1754045350426,3.60945898,3616.9,3616.0,2.76547037]
[1754045350618,2.76489643,3616.8,3615.8,2.76557603]
[1754045350818,0.84622364,3616.7,3615.5,1.2884]
[1754045351021,0.84622364,3616.7,3615.6,1.2884]
[1754045351248,4.401,3616.6,3615.8,2.76556403]
[1754045351520,4.401,3616.5,3615.9,2.76553409]
[1754045351852,4.401,3616.5,3615.7,1.2884]
[1754045352255,4.401,3616.5,3615.7,7.05411182]
[1754045352424,2.76488198,3616.8,3615.9,2.76550646]
[1754045352624,4.402,3616.4,3615.9,2.76550646]
[1754045352870,0.2764882,3616.7,3616.0,1.2884]
[1754045353049,4.401,3616.3,3616.0,1.2884]
[1754045353425,4.401,3616.3,3615.5,0.4633]
[1754045353646,4.401,3616.3,3615.5,3.22916696]
[1754045354058,4.401,3616.3,3615.5,0.4633]
[1754045354248,4.401,3616.3,3615.7,2.76564056]
[1754045354562,4.4,3616.2,3615.7,2.76564056]
[1754045354723,4.4,3616.2,3615.8,2.76562694]
[1754045355125,2.77482669,3616.9,3615.8,2.76562694]
[1754045355126,4.399,3616.1,3616.0,2.76548672]
[1754045355327,4.399,3616.1,3616.0,4.05388672]
[1754045355646,4.398,3616.1,3616.0,4.05388442]
[1754045356160,4.398,3616.3,3616.0,1.2884]
[1754045356366,4.398,3616.3,3616.2,2.76533377]
[1754045356549,0.8446,3617.4,3616.2,1.213]
[1754045356721,14.02449789,3617.3,3616.3,2.76518909]
[1754045357056,14.02449789,3617.3,3616.2,3.97833377]
[1754045357057,6.15934509,3617.2,3616.2,3.97827574]
[1754045357224,6.15934509,3617.2,3616.2,1.213]
[1754045357425,6.15934509,3617.2,3616.7,2.76493582]
[1754045357688,1.76334509,3617.2,3616.7,2.76493582]
[1754045357839,4.395,3617.1,3616.8,2.76487121]
[1754045358165,12.0164,3617.3,3616.8,2.76486912]
[1754045358166,1.81747451,3617.0,3616.8,2.76486912]
[1754045358361,11.26,3617.3,3616.5,0.451]
[1754045358530,4.394,3616.9,3616.7,2.76493853]
[1754045358858,4.394,3616.9,3616.7,0.451]
[1754045359063,4.394,3616.9,3616.5,2.76507629]
[1754045359226,4.393,3616.8,3616.2,1.213]
[1754045359425,11.26,3617.3,3616.2,1.213]
[1754045359426,1.40244367,3617.2,3616.6,2.76496048]
[1754045359636,0.1384,3616.9,3616.4,2.90353467]
[1754045360062,0.1384,3616.9,3616.6,2.76502792]
[1754045360247,0.1384,3616.9,3616.6,2.7650095]
[1754045360565,1.58118832,3616.9,3616.5,3.21607916]
[1754045360769,1.58118832,3616.9,3616.4,0.1384]
[1754045361066,1.58118832,3616.9,3616.4,2.90353499]
[1754045361562,4.388,3616.8,3616.4,0.1384]
[1754045361929,4.388,3616.8,3616.4,2.76513342]
[1754045362126,5.91006278,3616.8,3616.2,0.1384]
[1754045362329,0.1384,3616.6,3616.1,3.451]
[1754045362642,1.43503952,3616.5,3616.1,0.451]
[1754045362841,0.1384,3616.4,3616.1,0.451]
[1754045363162,4.386,3616.3,3616.1,0.451]
[1754045363542,4.386,3616.3,3616.1,2.76540689]
[1754045363744,4.386,3616.3,3616.0,2.76546485]
[1754045363940,4.72761273,3616.3,3615.9,0.1384]
[1754045364143,1.43503952,3616.2,3615.7,2.76571452]
[1754045364367,0.1384,3616.0,3615.6,2.76576339]
[1754045364573,4.385,3615.9,3615.6,2.76576339]
[1754045364730,4.384,3615.8,3615.7,0.451]
[1754045365063,5.81903952,3615.8,3615.7,0.451]
[1754045365466,1.43503952,3615.8,3615.7,3.21671618]
[1754045365645,5.81803952,3615.8,3615.7,3.21671618]
[1754045365845,5.81803952,3615.8,3615.7,1.213]
[1754045366369,5.81803952,3615.8,3615.7,3.97871618]
[1754045366666,5.81803952,3615.8,3615.4,3.0]
[1754045366865,5.95643952,3615.8,3615.5,1.213]
[1754045367052,5.95643952,3615.8,3615.6,2.76577073]
[1754045367244,5.95643952,3615.8,3615.7,2.76571618]
[1754045367440,5.95643952,3615.8,3615.6,0.451]
[1754045367775,1.43503952,3615.8,3615.7,3.97871618]
[1754045367980,5.81403952,3615.8,3615.7,3.97871618]
[1754045368127,1.43503952,3615.8,3615.7,3.97871618]
[1754045368438,5.81303952,3615.8,3615.5,0.1384]
[1754045368627,5.81303952,3615.8,3615.3,0.451]
[1754045368628,6.40818347,3615.8,3615.3,2.76594598]
[1754045368825,0.1384,3615.6,3615.3,2.76594598]
[1754045369040,0.1384,3615.6,3615.3,1.213]
[1754045369237,0.1384,3615.6,3615.3,3.97900795]
[1754045369439,0.1384,3615.6,3615.3,1.213]
[1754045369642,0.1384,3615.6,3615.1,0.1384]
[1754045369643,0.79305835,3615.6,3615.1,2.90455329]